bitfinex-derivatives/quotes_BTCF0:USTF0_20241117
["timestamp","ask_amount","ask_price","bid_price","bid_amount"]
[1731823195947,0.13148221,90535.0,90528.0,0.09785069]
[1731823196269,0.13148221,90538.0,90533.0,0.3608]
[1731823196560,0.2845549,90539.0,90533.0,0.3608]
[1731823197155,0.13148221,90538.0,90533.0,0.3608]
[1731823197357,0.15307269,90539.0,90533.0,0.3608]
[1731823197956,0.09785069,90534.0,90533.0,0.3608]
[1731823198475,0.2293329,90534.0,90533.0,0.3608]
[1731823199067,0.2293329,90534.0,90518.0,0.055234]
[1731823199068,0.055228,90529.0,90518.0,0.055234]
[1731823199251,0.09785069,90525.0,90518.0,0.055234]
[1731823200349,0.09785069,90531.0,90523.0,0.055231]
[1731823200960,0.09785069,90531.0,90518.0,0.3608]
[1731823200961,0.09785069,90531.0,90526.0,0.055229]
[1731823201156,0.05547034,90534.0,90526.0,0.09785069]
[1731823201352,0.22903558,90537.0,90526.0,0.45865069]
[1731823201552,0.09785069,90537.0,90532.0,0.055226]
[1731823201863,0.09785069,90537.0,90533.0,0.055225]
[1731823202365,0.09785069,90537.0,90526.0,0.45957069]
[1731823202660,0.1241,90546.0,90536.0,0.055223]
[1731823202661,0.13118489,90539.0,90536.0,0.055223]
[1731823202863,0.13118489,90540.0,90537.0,0.033]
[1731823203048,0.13118489,90541.0,90537.0,0.033]
[1731823203255,0.055221,90540.0,90537.0,0.033]
[1731823203959,0.13118489,90541.0,90539.0,0.055221]
[1731823204263,0.09785069,90542.0,90537.0,0.033]
[1731823204264,0.22903558,90542.0,90541.0,0.05522]
[1731823204567,0.13118489,90544.0,90539.0,0.09785069]
[1731823204866,0.13118489,90546.0,90542.0,0.055219]
[1731823205166,0.15306669,90548.0,90543.0,0.055219]
[1731823205167,0.13118489,90547.0,90543.0,0.055219]
[1731823206053,0.22903558,90548.0,90545.0,0.055218]
[1731823206562,0.22903558,90548.0,90545.0,0.047218]
[1731823206757,0.09785069,90548.0,90545.0,0.047218]
[1731823206959,0.22903558,90548.0,90545.0,0.047218]
[1731823208659,0.13118489,90547.0,90545.0,0.047218]
[1731823210765,0.13118489,90546.0,90545.0,0.047218]
[1731823211663,0.15306669,90548.0,90545.0,0.047218]
[1731823213667,0.31768601,90548.0,90545.0,0.047218]
[1731823214871,0.16461932,90547.0,90545.0,0.047218]
[1731823215057,0.15306669,90548.0,90545.0,0.047218]
[1731823215058,0.16461932,90546.0,90545.0,0.047218]
[1731823215366,0.16461932,90547.0,90545.0,0.047218]
[1731823215572,0.16461932,90546.0,90545.0,0.047218]
[1731823216573,0.16461932,90546.0,90538.0,0.0303]
[1731823216574,0.16461932,90546.0,90539.0,0.055221]
[1731823216752,0.1314056,90541.0,90540.0,0.055221]
[1731823219666,0.1314056,90544.0,90540.0,0.09785069]
[1731823219864,0.055218,90545.0,90541.0,0.05522]
[1731823220167,0.41700481,90550.0,90542.0,0.00550836]
[1731823220168,0.15306969,90543.0,90542.0,0.00550836]
[1731823220474,0.41661501,90550.0,90544.0,0.055218]
[1731823220766,0.3608,90550.0,90545.0,0.00550836]
[1731823220973,0.3608,90550.0,90544.0,0.055218]
[1731823221357,0.055216,90548.0,90538.0,0.19869224]
[1731823221561,0.13138816,90542.0,90541.0,0.05522]
[1731823221760,0.13138816,90543.0,90541.0,0.05522]
[1731823222066,0.13138816,90547.0,90540.0,0.09785069]
[1731823222363,0.13138816,90547.0,90537.0,0.08880507]
[1731823222364,0.13138982,90548.0,90546.0,0.3608]
[1731823222669,0.13138982,90551.0,90550.0,0.055215]
[1731823222875,0.22924051,90551.0,90550.0,0.055215]
[1731823223064,0.15306469,90551.0,90550.0,0.055215]
[1731823223376,0.28445451,90551.0,90550.0,0.055215]
[1731823224561,0.09785069,90551.0,90546.0,0.42542]
[1731823224769,0.09785069,90551.0,90546.0,0.4245]
[1731823224770,0.1866576,90550.0,90546.0,0.4245]
[1731823224967,0.1314426,90549.0,90546.0,0.479717]
[1731823225271,0.1866576,90550.0,90547.0,0.055217]
[1731823225470,0.1314426,90549.0,90547.0,0.055217]
[1731823225672,0.1314426,90549.0,90546.0,0.42534]
[1731823225673,0.055216,90548.0,90546.0,0.06454]
[1731823225976,0.1866586,90548.0,90546.0,0.0637]
[1731823226179,0.055218,90545.0,90541.0,0.08884]
[1731823226363,0.13146547,90544.0,90541.0,0.08884]
[1731823226564,0.13146547,90543.0,90541.0,0.08884]
[1731823227762,0.16461932,90546.0,90543.0,0.055219]
[1731823228260,0.16461932,90546.0,90541.0,0.08884]
[1731823228575,0.16461932,90544.0,90541.0,0.08884]
[1731823229274,0.21983632,90546.0,90541.0,0.14406]
[1731823229676,0.16461932,90545.0,90541.0,0.14406]
[1731823229975,0.16461932,90545.0,90542.0,0.00554019]
[1731823230162,0.16461932,90544.0,90543.0,0.00554019]
[1731823231485,0.16452328,90544.0,90543.0,0.00554188]
[1731823231672,0.16452296,90544.0,90543.0,0.00554188]
[1731823231863,0.05371413,90544.0,90543.0,0.00554188]
[1731823232066,0.055217,90546.0,90543.0,0.00554188]
[1731823232265,0.05371402,90545.0,90544.0,0.00554188]
[1731823233369,0.05371402,90545.0,90544.0,0.36634188]
[1731823234069,0.05371402,90545.0,90544.0,0.00554188]
[1731823234878,0.16461339,90545.0,90544.0,0.51941157]
[1731823235175,0.16461339,90547.0,90546.0,0.055217]
[1731823235374,0.0051,90557.0,90546.0,0.055217]
[1731823235375,0.16461339,90549.0,90546.0,0.06075888]
[1731823235576,0.21982939,90549.0,90547.0,0.00554188]
[1731823235903,0.055217,90546.0,90544.0,0.45949069]
[1731823236068,0.16462047,90546.0,90541.0,0.28753224]
[1731823236263,0.055218,90545.0,90541.0,0.27953224]
[1731823236466,0.21983847,90545.0,90541.0,0.08084]
[1731823236977,0.055219,90544.0,90541.0,0.08084]
[1731823237380,0.09785069,90542.0,90541.0,0.08084]
[1731823237675,0.15307069,90542.0,90540.0,0.19869224]
[1731823238065,0.055221,90540.0,90538.0,0.0333]
[1731823238577,0.055221,90540.0,90536.0,0.61471524]
[1731823238773,0.21984147,90540.0,90536.0,0.055223]
[1731823239284,0.055221,90540.0,90537.0,0.19869224]
[1731823239462,0.055221,90540.0,90537.0,0.25391524]
[1731823239666,0.055221,90540.0,90537.0,0.055223]
[1731823239881,0.055221,90540.0,90537.0,0.25391524]
[1731823240067,0.055221,90540.0,90537.0,0.055223]
[1731823240269,0.055221,90540.0,90537.0,0.25391524]
[1731823240464,0.055221,90540.0,90539.0,0.19869224]
[1731823240976,0.055221,90540.0,90537.0,0.055223]
[1731823241564,0.055221,90540.0,90539.0,0.19875325]
[1731823242875,0.055222,90538.0,90536.0,0.19875325]
[1731823243077,0.055223,90537.0,90534.0,0.19875325]
[1731823243276,0.055223,90537.0,90535.0,0.19875325]
[1731823243578,0.055223,90537.0,90536.0,0.19875325]
[1731823243777,0.055223,90537.0,90528.0,0.37646605]
[1731823243778,0.055223,90536.0,90528.0,0.37646605]
[1731823243979,0.13163253,90530.0,90529.0,0.19875325]
[1731823244180,0.13163253,90530.0,90528.0,0.34316605]
[1731823244479,0.13163253,90529.0,90528.0,0.1444128]
[1731823244783,0.13163253,90529.0,90528.0,0.34316605]
[1731823245083,0.13163253,90530.0,90528.0,0.1444128]
[1731823245286,0.13163253,90530.0,90528.0,0.34316605]
[1731823245773,0.13163253,90529.0,90528.0,0.1444128]
[1731823245979,0.13163253,90530.0,90528.0,0.1444128]
[1731823246280,0.13163253,90529.0,90528.0,0.1444128]
[1731823247181,0.13163253,90530.0,90528.0,0.1444128]
[1731823247676,0.22948322,90529.0,90528.0,0.1444128]
[1731823248071,0.13163253,90529.0,90528.0,0.1444128]
[1731823248578,0.13163253,90529.0,90528.0,0.0555728]
[1731823248778,0.13163253,90529.0,90527.0,0.00165678]
[1731823249483,0.055225,90533.0,90527.0,0.00165678]
[1731823249484,0.13163253,90528.0,90527.0,0.00165678]
[1731823249888,0.13163253,90531.0,90527.0,0.00165678]
[1731823250183,0.13163253,90531.0,90528.0,0.19865714]
[1731823250568,0.13163253,90530.0,90527.0,0.00165678]
[1731823250998,0.09785069,90528.0,90527.0,0.00165678]
[1731823251382,0.055231,90525.0,90523.0,0.35445678]
[1731823251978,0.13163086,90524.0,90523.0,0.35445678]
[1731823252185,0.16454066,90527.0,90519.0,0.08746083]
[1731823252380,0.1316034,90522.0,90519.0,0.0329]
[1731823252685,0.1316034,90521.0,90519.0,0.0329]
[1731823253082,0.1868344,90523.0,90519.0,0.0329]
[1731823253878,0.1316034,90522.0,90519.0,0.0329]
[1731823254085,0.1868344,90523.0,90519.0,0.0329]
[1731823254590,0.1868344,90523.0,90519.0,0.08930677]
[1731823254897,0.1868344,90523.0,90519.0,0.0329]
[1731823255188,0.1868344,90523.0,90519.0,0.13075069]
[1731823255390,0.055231,90523.0,90519.0,0.13075069]
[1731823255778,0.1316034,90524.0,90522.0,0.055232]
[1731823255978,0.0312,90533.0,90520.0,0.3608]
[1731823255979,0.1316034,90527.0,90520.0,0.3608]
[1731823256193,0.1316034,90529.0,90525.0,0.05523]
[1731823256493,0.1316034,90529.0,90524.0,0.09785069]
[1731823256494,0.1316034,90529.0,90526.0,0.055229]
[1731823256880,0.1868314,90529.0,90526.0,0.055229]
[1731823257196,0.055228,90528.0,90526.0,0.055229]
[1731823261681,0.055228,90528.0,90526.0,0.25388614]
[1731823262083,0.1316034,90531.0,90526.0,0.19865714]
[1731823262291,0.1316034,90531.0,90530.0,0.416027]
[1731823263584,0.055226,90532.0,90530.0,0.416027]
[1731823266490,0.055226,90532.0,90531.0,0.3608]
[1731823266795,0.16454066,90535.0,90532.0,0.055226]
[1731823267499,0.21976466,90535.0,90533.0,0.055225]
[1731823267885,0.13160971,90534.0,90532.0,0.0325]
[1731823268090,0.23198808,90555.0,90532.0,0.0325]
[1731823268091,0.13160971,90536.0,90535.0,0.055224]
[1731823268394,0.00165742,90541.0,90540.0,0.055221]
[1731823268600,0.00165742,90541.0,90540.0,0.15307169]
[1731823268779,0.0051,90547.0,90545.0,0.055218]
[1731823268979,0.0051,90547.0,90540.0,0.29650783]
[1731823268980,0.055218,90545.0,90544.0,0.055218]
[1731823269399,0.055218,90545.0,90535.0,0.3608]
[1731823269400,0.26239135,90545.0,90535.0,0.3608]
[1731823269598,0.09785069,90536.0,90535.0,0.3608]
[1731823270492,0.26239135,90541.0,90535.0,0.3608]
[1731823270802,0.16454066,90542.0,90540.0,0.055221]
[1731823271016,0.16454066,90542.0,90540.0,0.15307169]
[1731823271207,0.16454066,90545.0,90544.0,0.055219]
[1731823271394,0.0323,90548.0,90544.0,0.416019]
[1731823271395,0.16454066,90546.0,90544.0,0.416019]
[1731823272098,0.34990735,90548.0,90544.0,0.3608]
[1731823272589,0.18536669,90548.0,90544.0,0.3608]
[1731823272986,0.055218,90546.0,90544.0,0.3608]
[1731823273587,0.055219,90543.0,90537.0,0.055223]
[1731823273791,0.09785069,90538.0,90537.0,0.055223]
[1731823274291,0.15306969,90543.0,90538.0,0.055222]
[1731823274702,0.15306969,90543.0,90540.0,0.055221]
[1731823275002,0.15306969,90543.0,90541.0,0.05522]
[1731823275003,0.09785069,90543.0,90541.0,0.05522]
[1731823276898,0.09785069,90543.0,90534.0,0.44932]
[1731823277100,0.09785069,90536.0,90534.0,0.44932]
[1731823277294,0.09785069,90536.0,90534.0,0.504544]
[1731823277498,0.055218,90545.0,90540.0,0.055221]
[1731823277499,0.09785069,90542.0,90540.0,0.055221]
[1731823278900,0.15307069,90542.0,90534.0,0.505424]
[1731823279101,0.09785069,90535.0,90534.0,0.504545]
[1731823281310,0.09785069,90535.0,90534.0,0.496545]
[1731823281694,0.09785069,90535.0,90534.0,0.3528]
[1731823286210,0.26239135,90540.0,90534.0,0.3528]
[1731823286408,0.09785069,90540.0,90535.0,0.055224]
[1731823287413,0.16454066,90545.0,90536.0,0.19859673]
[1731823287602,0.21975866,90546.0,90539.0,0.09785069]
[1731823287793,0.21975866,90546.0,90544.0,0.055218]
[1731823288009,0.05371441,90545.0,90544.0,0.055218]
[1731823291112,0.05371392,90545.0,90536.0,0.08852]
[1731823291311,0.16466364,90544.0,90542.0,0.05522]
[1731823291504,0.16466364,90545.0,90543.0,0.3608]
[1731823291696,0.19766465,90551.0,90544.0,0.055219]
[1731823291697,0.16466364,90546.0,90544.0,0.055219]
[1731823291899,0.16466364,90545.0,90544.0,0.055219]
[1731823292100,0.055213,90553.0,90546.0,0.055217]
[1731823292101,0.16466364,90547.0,90546.0,0.055217]
[1731823292801,0.25137501,90552.0,90543.0,0.3608]
[1731823293005,0.16465888,90547.0,90546.0,0.055217]
[1731823293314,0.055213,90553.0,90549.0,0.055215]
[1731823293315,0.25287765,90553.0,90549.0,0.055215]
[1731823293507,0.05371103,90552.0,90550.0,0.055215]
[1731823295313,0.16466521,90551.0,90550.0,0.055215]
[1731823295501,0.16466521,90552.0,90550.0,0.055215]
[1731823295810,0.16466521,90554.0,90552.0,0.055214]
[1731823296004,0.16466521,90554.0,90553.0,0.416013]
[1731823296317,0.16466521,90555.0,90553.0,0.408013]
[1731823297700,0.16466521,90554.0,90553.0,0.055213]
[1731823298304,0.055214,90551.0,90547.0,0.055217]
[1731823298507,0.14913375,90554.0,90544.0,0.19859673]
[1731823298711,0.14913375,90554.0,90542.0,0.3608]
[1731823298712,0.16466521,90553.0,90549.0,0.055215]
[1731823298903,0.14913375,90554.0,90549.0,0.055215]
[1731823298904,0.16466521,90552.0,90549.0,0.055215]
[1731823299108,0.16466521,90553.0,90549.0,0.055215]
[1731823299809,0.16466521,90553.0,90542.0,0.4159907]
[1731823300009,0.16466521,90553.0,90550.0,0.055215]
[1731823300926,0.14913375,90554.0,90552.0,0.3608]
[1731823300927,0.31379896,90554.0,90552.0,0.3608]
[1731823301216,0.14913375,90554.0,90552.0,0.3608]
[1731823301525,0.20434675,90554.0,90552.0,0.3608]
[1731823302304,0.16466521,90556.0,90546.0,0.19859673]
[1731823302517,0.19786521,90557.0,90555.0,0.055212]
[1731823302704,0.0332,90557.0,90556.0,0.0326]
[1731823303319,0.19777119,90557.0,90556.0,0.0326]
[1731823304514,0.0332,90557.0,90556.0,0.0326]
[1731823306711,0.0332,90557.0,90556.0,0.08650137]
[1731823307111,0.16457119,90559.0,90557.0,0.055211]
[1731823307521,0.055209,90560.0,90556.0,0.08650137]
[1731823307522,0.21978019,90560.0,90556.0,0.08650137]
[1731823307709,0.21978019,90560.0,90559.0,0.055209]
[1731823308523,0.055209,90560.0,90559.0,0.055209]
[1731823310941,0.05425496,90564.0,90562.0,0.055207]
[1731823311119,0.16622798,90565.0,90562.0,0.055207]
[1731823311422,0.055207,90564.0,90562.0,0.047207]
[1731823312014,0.16622798,90565.0,90556.0,0.0326]
[1731823312211,0.055208,90562.0,90557.0,0.05521]
[1731823312616,0.055208,90562.0,90558.0,0.05521]
[1731823314326,0.055208,90562.0,90560.0,0.055209]
[1731823314922,0.09784483,90561.0,90560.0,0.055209]
[1731823316523,0.26241602,90561.0,90560.0,0.055209]
[1731823316733,0.09784483,90561.0,90560.0,0.055209]
[1731823317223,0.26241602,90561.0,90560.0,0.06069784]
[1731823318236,0.15155046,90561.0,90560.0,0.06069784]
[1731823318416,0.15155046,90561.0,90560.0,0.06070502]
[1731823318724,0.15155046,90561.0,90560.0,0.00549602]
[1731823319024,0.15155046,90561.0,90556.0,0.0326]
[1731823319318,0.05370563,90560.0,90557.0,0.00549021]
[1731823319520,0.05370563,90560.0,90558.0,0.00549021]
[1731823319718,0.05370563,90560.0,90556.0,0.087811]
[1731823320026,0.05370563,90560.0,90557.0,0.00549643]
[1731823320230,0.05370563,90560.0,90558.0,0.00549643]
[1731823320417,0.15155046,90560.0,90559.0,0.00549643]
[1731823321623,0.1515513,90560.0,90559.0,0.00549643]
[1731823321829,0.34920015,90560.0,90557.0,0.05521]
[1731823322019,0.29549368,90560.0,90558.0,0.06069342]
[1731823322319,0.05370597,90559.0,90558.0,0.05521]
[1731823322521,0.05370597,90559.0,90558.0,0.06069387]
[1731823322711,0.09784483,90559.0,90558.0,0.06069387]
[1731823322910,0.34919965,90559.0,90558.0,0.06069387]
[1731823323522,0.34919965,90559.0,90558.0,0.05521]
[1731823323811,0.05370597,90559.0,90558.0,0.05521]
[1731823324015,0.19764885,90559.0,90558.0,0.05521]
[1731823324231,0.05370597,90559.0,90558.0,0.05521]
[1731823324415,0.25135482,90559.0,90558.0,0.06070146]
[1731823324611,0.25135482,90559.0,90558.0,0.05521]
[1731823325113,0.10891497,90559.0,90556.0,0.0326]
[1731823325429,0.1647753,90557.0,90556.0,0.0326]
[1731823325634,0.055209,90559.0,90556.0,0.03807148]
[1731823325824,0.05370522,90558.0,90557.0,0.00547148]
[1731823326327,0.05370522,90558.0,90556.0,0.03007148]
[1731823326825,0.05370527,90557.0,90556.0,0.03007148]
[1731823327234,0.05370527,90558.0,90556.0,0.03007148]
[1731823327423,0.05370527,90558.0,90556.0,0.08528248]
[1731823331435,0.05370514,90557.0,90556.0,0.08528248]
[1731823331621,0.05370514,90557.0,90556.0,0.09435088]
[1731823332218,0.05370514,90558.0,90556.0,0.09435088]
[1731823332421,0.05370514,90557.0,90556.0,0.08528248]
[1731823332621,0.055209,90559.0,90556.0,0.08528248]
[1731823332622,0.05370514,90558.0,90556.0,0.09435189]
[1731823332830,0.05370514,90558.0,90557.0,0.00906941]
[1731823336943,0.05370514,90558.0,90557.0,0.00931354]
[1731823337124,0.05370514,90558.0,90556.0,0.28387921]
[1731823337332,0.05370514,90558.0,90557.0,0.00931348]
[1731823338443,0.05370514,90558.0,90557.0,0.57455212]
[1731823338444,0.1648467,90558.0,90557.0,0.57455212]
[1731823338631,0.1648467,90559.0,90557.0,0.43116639]
[1731823338941,0.1648467,90560.0,90559.0,0.055209]
[1731823339135,0.1648467,90560.0,90559.0,0.07036439]
[1731823339341,0.1648467,90561.0,90559.0,0.07036439]
[1731823339539,0.19775243,90568.0,90561.0,0.055208]
[1731823339540,0.1648467,90563.0,90561.0,0.055208]
[1731823339732,0.1648467,90564.0,90563.0,0.055207]
[1731823339935,0.1648467,90564.0,90563.0,0.07036239]
[1731823340160,0.1648467,90564.0,90563.0,0.2691442]
[1731823340340,0.19764885,90566.0,90565.0,0.055206]
[1731823340535,0.16476752,90566.0,90565.0,0.43116139]
[1731823340735,0.16476752,90567.0,90565.0,0.43116139]
[1731823340967,0.16476752,90567.0,90566.0,0.01515539]
[1731823341348,0.00010358,90568.0,90566.0,0.00715539]
[1731823341647,0.00010358,90568.0,90565.0,0.416926]
[1731823341648,0.00010358,90568.0,90567.0,0.00584191]
[1731823342153,0.00010358,90568.0,90567.0,0.15889074]
[1731823343945,0.00010358,90568.0,90567.0,0.17086269]
[1731823344450,0.1317771,90568.0,90567.0,0.17086269]
[1731823345035,0.1317771,90568.0,90567.0,0.89246269]
[1731823345237,0.1317771,90568.0,90567.0,0.79461786]
[1731823345435,0.00010358,90568.0,90567.0,0.79461786]
[1731823345837,0.00010358,90568.0,90567.0,0.78264591]
[1731823349947,0.00010358,90568.0,90567.0,0.78269768]
[1731823350144,0.00010358,90568.0,90567.0,0.42189768]
[1731823351457,0.00010358,90568.0,90567.0,0.43132955]
[1731823353147,0.00010358,90568.0,90567.0,0.43135419]
[1731823354954,0.00010358,90568.0,90567.0,0.43127307]
[1731823355355,0.13174216,90568.0,90567.0,0.43127307]
[1731823356353,0.13174216,90568.0,90567.0,0.42327307]
[1731823359452,0.13183411,90568.0,90567.0,0.42327307]
[1731823359669,0.13183411,90568.0,90567.0,0.408004]
[1731823359861,0.13183411,90568.0,90567.0,0.41737093]
[1731823360064,0.13183411,90568.0,90567.0,0.42322431]
[1731823361050,0.00010358,90568.0,90567.0,0.42322431]
[1731823363362,0.00010358,90568.0,90567.0,0.408004]
[1731823363655,0.00010358,90568.0,90567.0,0.42329423]
[1731823365455,0.09794841,90568.0,90567.0,0.62207604]
[1731823365668,0.00010358,90568.0,90567.0,0.62207604]
[1731823365969,0.00010358,90568.0,90567.0,0.42329423]
[1731823366267,0.00010358,90568.0,90567.0,0.42321532]
[1731823366753,0.13183411,90568.0,90567.0,0.42321532]
[1731823367264,0.00010358,90568.0,90567.0,0.42321532]
[1731823367459,0.00010358,90568.0,90567.0,0.62199713]
[1731823368165,0.13196318,90568.0,90567.0,0.42321532]
[1731823368465,0.00010358,90568.0,90567.0,0.42321532]
[1731823369466,0.00010358,90568.0,90567.0,0.68770893]
[1731823371372,0.00010358,90568.0,90567.0,0.67970893]
[1731823371873,0.00010358,90568.0,90567.0,0.41521532]
[1731823372167,0.1648711,90568.0,90567.0,0.41521532]
[1731823372369,0.1648711,90568.0,90567.0,0.6139864]
[1731823372564,0.00010358,90568.0,90567.0,0.6139864]
[1731823372755,0.00010358,90568.0,90567.0,0.59877508]
[1731823372956,0.05380359,90568.0,90567.0,0.05411587]
[1731823373166,0.05380359,90568.0,90567.0,0.01491187]
[1731823373365,0.41460359,90568.0,90561.0,0.55957108]
[1731823373664,0.055209,90559.0,90557.0,0.19877108]
[1731823373871,0.10891676,90558.0,90554.0,0.19877108]
[1731823374075,0.16490259,90556.0,90554.0,0.19877108]
[1731823374458,0.15305583,90557.0,90553.0,0.055213]
[1731823374663,0.15305583,90557.0,90553.0,0.25398408]
[1731823374868,0.18465583,90557.0,90553.0,0.25398408]
[1731823375371,0.18465583,90557.0,90553.0,0.055213]
[1731823375576,0.055212,90556.0,90553.0,0.055213]
[1731823376165,0.13182552,90554.0,90553.0,0.055213]
[1731823376362,0.0316,90557.0,90553.0,0.15305783]
[1731823376363,0.13182552,90555.0,90553.0,0.15305783]
[1731823377056,0.13182552,90555.0,90553.0,0.2074272]
[1731823377470,0.13182552,90555.0,90554.0,0.3608]
[1731823378173,0.22967035,90555.0,90554.0,0.3608]
[1731823378498,0.09784483,90555.0,90554.0,0.3608]
[1731823378662,0.09784483,90555.0,90554.0,0.3109]
[1731823378663,0.62472742,90555.0,90554.0,0.3109]
[1731823378857,0.055215,90549.0,90548.0,0.00165629]
[1731823379089,0.15305983,90549.0,90548.0,0.00165629]
[1731823379581,0.15305983,90549.0,90536.0,0.3608]
[1731823379582,0.055222,90538.0,90536.0,0.3608]
[1731823379872,0.055222,90538.0,90529.0,0.055228]
[1731823379873,0.055225,90534.0,90529.0,0.055228]
[1731823380257,0.09784483,90532.0,90529.0,0.055228]
[1731823381163,0.09784483,90532.0,90530.0,0.273267]
[1731823381473,0.055225,90534.0,90530.0,0.273267]
[1731823381659,0.055225,90534.0,90530.0,0.32947169]
[1731823383772,0.09784483,90531.0,90530.0,0.21804]
[1731823385560,0.09784483,90531.0,90530.0,0.2788965]
[1731823385780,0.09784483,90531.0,90530.0,0.2236695]
[1731823385996,0.09784483,90531.0,90530.0,0.21804]
[1731823386479,0.09784483,90531.0,90530.0,0.21004]
[1731823388171,0.42924483,90531.0,90530.0,0.21004]
[1731823388966,0.51736483,90531.0,90530.0,0.21004]
[1731823390266,0.055226,90532.0,90530.0,0.21004]
[1731823390465,0.36140001,90534.0,90530.0,0.21004]
[1731823390671,0.3608,90534.0,90530.0,0.21004]
[1731823390871,0.45864483,90534.0,90530.0,0.21004]
[1731823391286,0.51386983,90534.0,90530.0,0.21004]
[1731823391980,0.45864483,90534.0,90530.0,0.21004]
[1731823392175,0.055226,90532.0,90530.0,0.21004]
[1731823398370,0.45920484,90534.0,90531.0,0.055226]
[1731823398677,0.09784483,90534.0,90531.0,0.055226]
[1731823401274,0.09784483,90534.0,90531.0,0.047226]
[1731823402175,0.09784483,90534.0,90532.0,0.00567339]
[1731823402378,0.09784483,90534.0,90531.0,0.047226]
[1731823402379,0.09784483,90534.0,90533.0,0.00567339]
[1731823403375,0.09784483,90534.0,90533.0,0.00569365]
[1731823404183,0.13161648,90537.0,90533.0,0.00569365]
[1731823404401,0.13161648,90536.0,90535.0,0.055224]
[1731823404676,0.22946131,90536.0,90535.0,0.00569365]
[1731823405370,0.09784483,90536.0,90535.0,0.00569365]
[1731823405575,0.22946528,90536.0,90535.0,0.00569365]
[1731823406375,0.09784483,90536.0,90535.0,0.00569365]
[1731823406884,0.055223,90537.0,90535.0,0.00569365]
[1731823407179,0.055223,90537.0,90536.0,0.00569365]
[1731823407382,0.15306783,90537.0,90536.0,0.0149636]
[1731823408174,0.15306783,90537.0,90536.0,0.00569365]
[1731823408494,0.15306783,90537.0,90536.0,0.01495557]
[1731823408495,0.20678722,90537.0,90536.0,0.01495557]
[1731823410790,0.20678722,90537.0,90536.0,0.01507303]
[1731823411677,0.15306783,90537.0,90536.0,0.01507303]
[1731823411879,0.26263907,90537.0,90536.0,0.01507303]
[1731823412080,0.09784483,90537.0,90536.0,0.01507303]
[1731823413291,0.16479424,90540.0,90538.0,0.055222]
[1731823413487,0.3608,90542.0,90539.0,0.04637303]
[1731823413784,0.52615425,90542.0,90540.0,0.01507303]
[1731823413989,0.52559424,90542.0,90541.0,0.01507303]
[1731823414385,0.3608,90542.0,90541.0,0.01507303]
[1731823414581,0.58081424,90542.0,90541.0,0.01507303]
[1731823414776,0.46973795,90542.0,90541.0,0.01507303]
[1731823415189,0.46973795,90542.0,90541.0,0.00579674]
[1731823415383,0.055222,90538.0,90531.0,0.055226]
[1731823415583,0.09784483,90534.0,90532.0,0.01505725]
[1731823415785,0.09784483,90534.0,90533.0,0.01505725]
[1731823415981,0.51236685,90534.0,90533.0,0.00579067]
[1731823416492,0.055226,90531.0,90530.0,0.20783067]
[1731823416691,0.10894802,90531.0,90530.0,0.20783067]
[1731823417194,0.25292947,90531.0,90530.0,0.20783067]
[1731823417393,0.30665921,90531.0,90530.0,0.20783067]
[1731823418494,0.10895574,90531.0,90530.0,0.20783067]
[1731823419883,0.20680057,90531.0,90530.0,0.20783067]
[1731823421682,0.2067958,90531.0,90530.0,0.20783067]
[1731823426494,0.20679782,90531.0,90530.0,0.20783067]
[1731823431393,0.20679782,90531.0,90530.0,0.19983067]
[1731823433003,0.56759782,90531.0,90530.0,0.19983067]
[1731823433801,0.20679782,90531.0,90530.0,0.19983067]
[1731823434007,0.56759782,90531.0,90530.0,0.19983067]
[1731823442015,0.56760092,90531.0,90530.0,0.19983067]
[1731823443413,0.69691761,90531.0,90530.0,0.19983067]
[1731823443616,0.69691519,90531.0,90530.0,0.19983067]
[1731823444001,0.59907036,90531.0,90530.0,0.19983067]
[1731823444312,0.69691519,90531.0,90530.0,0.19983067]
[1731823446417,0.69691519,90531.0,90530.0,0.19183067]
[1731823451603,0.69691519,90531.0,90515.0,0.0931]
[1731823451604,0.055236,90516.0,90515.0,0.0618]
[1731823451907,0.055236,90516.0,90515.0,0.06734805]
[1731823451908,1.07242908,90516.0,90515.0,0.06734805]
[1731823452102,1.05746384,90516.0,90515.0,0.0618]
[1731823452314,0.92841196,90516.0,90515.0,0.0618]
[1731823452901,0.92841939,90516.0,90515.0,0.0618]
[1731823455315,1.12590877,90516.0,90515.0,0.0618]
[1731823455815,0.92841939,90516.0,90515.0,0.0304]
[1731823457002,0.87468083,90516.0,90515.0,0.0304]
[1731823457520,1.03921847,90516.0,90515.0,0.0304]
[1731823458319,0.92841675,90516.0,90515.0,0.0304]
[1731823458712,0.98430973,90516.0,90515.0,0.0304]
[1731823461523,0.98430973,90516.0,90515.0,0.0224]
[1731823461818,0.93057381,90516.0,90515.0,0.0224]
[1731823462021,1.09505463,90516.0,90515.0,0.0224]
[1731823462215,1.03981863,90516.0,90515.0,0.0224]
[1731823462428,0.51453781,90516.0,90515.0,0.0224]
[1731823463210,0.3608,90516.0,90515.0,0.077636]
[1731823463819,0.49241023,90516.0,90515.0,0.077636]
[1731823464211,0.3608,90516.0,90515.0,0.077636]
[1731823464713,0.49244622,90516.0,90515.0,0.077636]
[1731823464914,0.3608,90516.0,90515.0,0.077636]
[1731823465109,0.4924672,90516.0,90515.0,0.077636]
[1731823465323,0.3608,90516.0,90515.0,0.077636]
[1731823466018,0.49250333,90516.0,90515.0,0.077636]
[1731823466224,0.3608,90516.0,90515.0,0.077636]
[1731823470112,0.09784483,90519.0,90515.0,0.077636]
[1731823470309,0.09784483,90519.0,90516.0,0.0315]
[1731823471043,0.09784483,90519.0,90516.0,0.086735]
[1731823473123,0.26232565,90519.0,90516.0,0.086735]
[1731823473421,0.16448082,90518.0,90516.0,0.086735]
[1731823473631,0.26232565,90519.0,90516.0,0.086735]
[1731823473933,0.16448082,90518.0,90516.0,0.086735]
[1731823474116,0.26232565,90519.0,90516.0,0.086735]
[1731823474424,0.16448082,90518.0,90516.0,0.086735]
[1731823474731,0.16448082,90517.0,90516.0,0.086735]
[1731823474914,0.16448082,90518.0,90516.0,0.086735]
[1731823475109,0.26232565,90519.0,90516.0,0.086735]
[1731823475835,0.16448082,90518.0,90516.0,0.086735]
[1731823476051,0.26232565,90519.0,90516.0,0.086735]
[1731823476423,0.26232565,90519.0,90516.0,0.078735]
[1731823476627,0.16448082,90518.0,90516.0,0.078735]
[1731823476818,0.26232565,90519.0,90516.0,0.078735]
[1731823477015,0.16448082,90518.0,90516.0,0.0235]
[1731823477215,0.21971582,90518.0,90510.0,0.055239]